fUST/lending_fUST_20240709
["ID","MTS","AMOUNT","RATE_DAILY","PERIOD"]
[331550497,1720488639487,-548.94269061,0.00021989,2]
[331550499,1720488639497,-204.00229597,0.00021989,2]
[331550501,1720488639509,-315.84654254,0.00021989,2]
[331550503,1720488639519,-500.0,0.00021989,2]
[331550506,1720488639530,-194.84301263,0.00021989,2]
[331550508,1720488639541,-500.0,0.00021989,2]
[331550510,1720488639552,-500.0,0.00021989,2]
[331550512,1720488639562,-500.0,0.00021989,2]
[331550514,1720488639573,-500.0,0.00021989,2]
[331550516,1720488639583,-500.0,0.00021989,2]
[331550518,1720488639593,-500.0,0.00021989,2]
[331550519,1720488639603,-500.0,0.00021989,2]
[331550521,1720488639612,-500.0,0.00021989,2]
[331550523,1720488639622,-500.0,0.00021989,2]
[331550525,1720488639631,-500.0,0.00021989,2]
[331550527,1720488639641,-629.29478381,0.00021989,2]
[331550529,1720488639651,-500.0,0.00021989,2]
[331550531,1720488639661,-331.6381067,0.00021989,2]
[331550533,1720488639672,-500.0,0.00021989,2]
[331550535,1720488639682,-500.0,0.00021989,2]
[331550537,1720488639692,-500.0,0.00021989,2]
[331550539,1720488639702,-22482.5054103,0.0002199,3]
[331550541,1720488639711,-4000.0,0.00022,4]
[331550543,1720488639721,-4000.0,0.00022,4]
[331550546,1720488639732,-4000.0,0.00022,4]
[331550547,1720488639742,-276.64310743,0.00022579,2]
[331550549,1720488639752,-2689.79896233,0.00022835,2]
[331550551,1720488639761,-208.71612873,0.00022941,2]
[331550553,1720488639771,-155.09631262,0.00022941,2]
[331550556,1720488639781,-22482.5054103,0.00022978,3]
[331550558,1720488639791,-4000.0,0.00023,4]
[331550559,1720488639801,-4000.0,0.00023,4]
[331550561,1720488639811,-4000.0,0.00023,4]
[331550563,1720488639820,-270.445378,0.00023,4]
[331550566,1720488639831,-21326.96870083,0.00023455,2]
[331550568,1720488639840,-966.45019421,0.000239,2]
[331550570,1720488639850,-435.0,0.00023966,2]
[331550571,1720488639860,-22482.5054103,0.0002498,3]
[331550573,1720488639870,-44965.0108205,0.0002499,3]
[331550575,1720488639880,-101117.7674926,0.00025,2]
[331550577,1720488639889,-307.27316856,0.00025,2]
[331550579,1720488639899,-2689.79896233,0.00025062,2]
[331550582,1720488639909,-155.0330195,0.00025154,2]
[331550584,1720488639920,-52127.6117321,0.00025501,2]
[331550586,1720488639930,-22482.5054103,0.00025859,3]
[331550588,1720488639940,-294.46226506,0.00025902,2]
[331550590,1720488639950,-1957.69762406,0.00025934,2]
[331550592,1720488639960,-155.16712528,0.00026848,2]
[331550594,1720488639970,-22482.5054103,0.00027174,3]
[331550596,1720488639980,-15374.07810958,0.00027184,2]
[331550993,1720488644439,-1.31563917,0.0001513,2]
[331551058,1720488740365,311.26458051,0.00014999,2]
[331551059,1720488742122,155.11785518,0.00014999,2]
[331551060,1720488783731,193.81589925,0.00014999,2]
[331551061,1720488834560,302.62565818,0.00015,2]
[331551062,1720488841836,1602.35521253,0.00014999,2]
[331551063,1720488862832,155.09631262,0.00014999,2]
[331551064,1720488865150,156.0014806,0.00014999,2]
[331551065,1720488880991,319.65942222,0.00014999,2]
[331551066,1720488881225,411.45795814,0.00014999,2]
[331551067,1720488897458,211.50422118,0.00014999,2]
[331551069,1720488901227,155.22674647,0.00014999,2]
[331551070,1720488910806,238.57015987,0.00014999,2]
[331551071,1720488913118,279.02321902,0.00014999,2]
[331551073,1720488917335,200.0,0.00014999,2]
[331551074,1720488930483,154.9779262,0.00014999,2]
[331551077,1720489024449,208.75351575,0.00014999,2]
[331551078,1720489035386,208.75351575,0.00014999,2]
[331551082,1720489045572,262.3278843,0.0001,2]
[331551091,1720489179262,166.34021353,0.00015,2]
[331551093,1720489204000,2125.1955874,0.00012121,2]
[331551096,1720489364640,155.05248107,0.00014692,2]
[331551097,1720489374719,1167.5020804,0.00014692,2]
[331551098,1720489381092,273.43805548,0.00014692,2]
[331551099,1720489382504,528.11675092,0.00014692,2]
[331551100,1720489388183,888.10798894,0.00014692,2]
[331551101,1720489393296,490.66944689,0.00014692,2]
[331551102,1720489398984,3137.5012568,0.00014692,2]
[331551103,1720489403282,155.35952678,0.00014692,2]
[331551104,1720489403406,11079.6416789,0.00014692,2]
[331551105,1720489404912,522.9362175,0.0001498,2]
[331551118,1720489540486,155.64097174,0.00014999,2]
[331551120,1720489584203,217.981833,0.00014574,2]
[331551121,1720489608210,210.28852233,0.00014999,2]
[331551122,1720489622036,504.75,0.00010959,2]
[331551124,1720489633682,187.98618958,0.00014999,2]
[331551125,1720489679298,738.59227567,0.00014999,2]
[331551127,1720489721897,2178.92734414,0.00014999,2]
[331551129,1720489756914,3000.0,0.00014596,2]
[331551130,1720489782906,158.99821132,0.00014999,2]
[331551203,1720489838302,-405.9651717,0.00015092,2]
[331551204,1720489838313,-24900.0,0.00015205,2]
[331551205,1720489838323,-250.0,0.00015205,2]
[331551206,1720489838334,-986.6805428,0.00015584,2]
[331551207,1720489838345,-2341.96076618,0.00016144,2]
[331551208,1720489838355,-2195.51567084,0.00016155,2]
[331551209,1720489838430,-25297.6882035,0.00016244,2]
[331551210,1720489838440,-25297.6882035,0.00016245,2]
[331551211,1720489838450,-57244.60275606,0.00016254,2]
[331551212,1720489838460,-35030.92803602,0.00016255,2]
[331551213,1720489838470,-42248.84590217,0.00016255,2]
[331551214,1720489838480,-166.666666,0.00016438,2]
[331551215,1720489838490,-276.64310743,0.0001681,2]
[331551216,1720489838500,-166.666666,0.00016823,2]
[331551217,1720489838510,-2195.51567082,0.00017091,2]
[331551218,1720489838520,-166.666666,0.00017208,2]
[331551219,1720489838530,-166.666666,0.00017592,2]
[331551220,1720489838540,-150.3645055,0.0001792,2]
[331551221,1720489838550,-166.666666,0.00017977,2]
[331551222,1720489838559,-500.0,0.00017989,2]
[331551223,1720489838569,-331.6381067,0.00017989,2]
[331551224,1720489838578,-194.84301263,0.00017989,2]
[331551225,1720489838588,-500.0,0.00017989,2]
[331551226,1720489838598,-548.94269061,0.00017989,2]
[331551227,1720489838607,-240.50634867,0.00017989,2]
[331551228,1720489838616,-500.0,0.00017989,2]
[331551229,1720489838626,-500.0,0.00017989,2]
[331551230,1720489838635,-500.0,0.00017989,2]
[331551231,1720489838645,-500.0,0.00017989,2]
[331551232,1720489838654,-500.0,0.00017989,2]
[331551233,1720489838664,-350.0,0.00017989,2]
[331551234,1720489838674,-500.0,0.00017989,2]
[331551235,1720489838684,-500.0,0.00017989,2]
[331551236,1720489838694,-500.0,0.00017989,2]
[331551237,1720489838704,-500.0,0.00017989,2]
[331551238,1720489838715,-25297.6882035,0.0001799,2]
[331551239,1720489838725,-1040.95683172,0.00018,2]
[331551240,1720489838736,-204.96923908,0.00018,2]
[331551241,1720489838746,-2195.51567082,0.00018028,2]
[331551242,1720489838756,-178.12703721,0.0001818,2]
[331551243,1720489838766,-166.666666,0.00018362,2]
[331551244,1720489838777,-969.91752259,0.000189,2]
[331551245,1720489838787,-2195.51567082,0.00018964,2]
[331551246,1720489838796,-813.14107465,0.00019,3]
[331551247,1720489838808,-250.0,0.00019041,2]
[331551248,1720489838820,-949.73040029,0.00019164,2]
[331551249,1720489838831,-162.423705,0.00019178,2]
[331551250,1720489838841,-162.367984,0.00019178,2]
[331551251,1720489838850,-50595.3764071,0.0001979,2]
[331551252,1720489838861,-52136.2205257,0.000198,2]
[331551253,1720489838871,-2195.51567082,0.000199,2]
[331551254,1720489838880,-150.0,0.00019966,2]
[331551255,1720489838889,-50595.3764071,0.0001998,2]
[331551256,1720489838902,-249.837777,0.0001999,2]
[331551257,1720489838912,-75893.0646106,0.0001999,2]
[331551258,1720489838922,-21004.02252795,0.0002,2]
[331551259,1720489838932,-589.22341254,0.0002,2]
[331551260,1720489838942,-11114.08530711,0.0002,2]
[331551261,1720489838952,-155.27458999,0.0002,2]
[331551262,1720489838962,-435.0,0.0002,2]
[331551263,1720489838972,-158.57719136,0.0002,2]
[331551264,1720489838981,-154.81646193,0.0002,2]
[331551265,1720489838992,-52946.73685478,0.0002,2]
[331551266,1720489839002,-4855.00134939,0.0002,2]
[331551292,1720489840125,-1547.58097447,0.0002,2]
[331551294,1720489840135,-48668.26532348,0.0002,2]
[331551295,1720489840311,-49117.796117,0.0002,2]
[331551296,1720489840322,-250.0,0.00020514,2]
[331551297,1720489840332,-350.0,0.00021062,2]
[331551298,1720489840342,-750.0,0.00021096,2]
[331551299,1720489840352,-222.86799845,0.000212,2]
[331551300,1720489840362,-2341.96076614,0.0002126,2]
[331551301,1720489840372,-450.0,0.0002161,2]
[331551302,1720489840382,-217.981833,0.00021861,2]
[331551303,1720489840391,-1065.65690458,0.00021917,2]
[331551304,1720489840401,-550.0,0.00022158,2]
[331551305,1720489840411,-306.71308225,0.00022706,2]
[331551306,1720489840422,-969.91752259,0.000239,2]
[331551307,1720489840432,-155.23684784,0.00025,2]
[331551308,1720489840443,-307.64906425,0.00025,2]
[331551309,1720489840453,-44208.89522133,0.00026,2]
[331551310,1720489840462,-2341.96076614,0.00026375,2]
[331551311,1720489840472,-150.58254532,0.00026865,2]
[331551312,1720489840482,-366.61198732,0.00026879,2]
[331551313,1720489840492,-5292.21400908,0.00027051,2]
[331551314,1720489840502,-36.96785887,0.00027184,7]
[331551348,1720489843320,-316.90783548,0.00016243,2]
[331551349,1720489843329,-7696.23289923,0.00027184,2]
[331551365,1720489978264,949.73040029,0.00015,2]
[331551366,1720490139267,392.84781921,0.00015,2]
[331551368,1720490780682,281.0,0.00025,120]
[331551369,1720490974109,-217.9818331,0.00015104,2]
[331551370,1720490974142,-250.0,0.00015105,2]
[331551371,1720490974170,-300.0,0.00015771,2]
[331551372,1720490974204,-300.0,0.00015771,2]
[331551373,1720490974235,-8043.76360931,0.00015772,2]
[331551374,1720491010469,-300.0,0.00015771,2]
[331551375,1720491010499,-300.0,0.00015771,2]
[331551376,1720491010530,-340.8566353,0.00015772,2]
[331551377,1720491010575,-723.64389777,0.00015772,2]
[331551431,1720491038569,-24900.0,0.00015221,2]
[331551432,1720491038579,-16284.29369357,0.00015772,2]
[331551433,1720491038589,-2723.09925789,0.00016144,2]
[331551434,1720491038598,-2195.51567084,0.00016153,2]
[331551435,1720491038608,-500.0,0.00016242,2]
[331551436,1720491038617,-381.0656237,0.00016242,2]
[331551437,1720491038626,-495.01294898,0.00016242,2]
[331551439,1720491038635,-35772.2536244,0.00016243,2]
[331551440,1720491038645,-35772.2536244,0.00016244,2]
[331551442,1720491038654,-35772.2536244,0.00016245,2]
[331551444,1720491038664,-1011.4506018,0.00016253,10]
[331551445,1720491038754,-57244.60275606,0.00016254,2]
[331551446,1720491038763,-204.00229597,0.00016254,2]
[331551447,1720491038772,-194.84301263,0.00016254,2]
[331551448,1720491038782,-500.0,0.00016254,2]
[331551449,1720491038791,-629.23411385,0.00016254,2]
[331551450,1720491038800,-357.72051234,0.00016254,2]
[331551451,1720491038809,-500.0,0.00016254,2]
[331551452,1720491038818,-469.85864365,0.00016254,2]
[331551453,1720491038827,-361.48553397,0.00016254,2]
[331551454,1720491038836,-500.0,0.00016254,2]
[331551455,1720491038848,-500.0,0.00016254,2]
[331551456,1720491038858,-500.0,0.00016254,2]
[331551457,1720491038867,-500.0,0.00016254,2]
[331551458,1720491038876,-500.0,0.00016254,2]
[331551459,1720491038887,-500.0,0.00016254,2]
[331551460,1720491038897,-500.0,0.00016254,2]
[331551461,1720491038906,-500.0,0.00016254,2]
[331551462,1720491038915,-500.0,0.00016254,2]
[331551463,1720491038924,-500.0,0.00016254,2]
[331551464,1720491038934,-500.0,0.00016254,2]
[331551465,1720491038943,-35030.92803602,0.00016255,2]
[331551466,1720491038952,-42248.84590217,0.00016255,2]
[331551467,1720491038961,-166.666666,0.00016438,2]
[331551468,1720491038971,-166.666666,0.00016823,2]
[331551469,1720491038980,-166.666666,0.00017208,2]
[331551470,1720491038990,-272.0,0.00017247,2]
[331551471,1720491038999,-420.0,0.00017348,2]
[331551472,1720491039009,-671.1312369,0.00017521,2]
[331551473,1720491039019,-166.666666,0.00017592,2]
[331551474,1720491039029,-166.666666,0.00017977,2]
[331551475,1720491039040,-1040.95683172,0.00018,2]
[331551476,1720491039050,-204.96923908,0.00018,2]
[331551477,1720491039060,-166.666666,0.00018362,2]
[331551478,1720491039070,-2195.51567082,0.00018937,2]
[331551479,1720491039080,-35772.2536244,0.0001899,2]
[331551480,1720491039091,-813.14107465,0.00019,3]
[331551481,1720491039101,-250.0,0.00019041,2]
[331551482,1720491039111,-253.0,0.00019083,2]
[331551483,1720491039122,-162.06287,0.00019178,2]
[331551484,1720491039133,-150.3645055,0.00019753,2]
[331551485,1720491039144,-35772.2536244,0.0001978,2]
[331551486,1720491039154,-35772.2536244,0.0001979,2]
[331551487,1720491039165,-52136.2205257,0.000198,2]
[331551488,1720491039176,-150.10186468,0.00019855,2]
[331551489,1720491039187,-35772.2536244,0.0001999,2]
[331551490,1720491039198,-1065.65690458,0.0002,2]
[331551491,1720491039214,-11114.08530711,0.0002,2]
[331551492,1720491039226,-169.7492569,0.0002,2]
[331551493,1720491039237,-435.0,0.0002,2]
[331551494,1720491039248,-2723.09925784,0.00020938,2]
[331551495,1720491039258,-158.884113,0.00021096,2]
[331551496,1720491039268,-654.669532,0.00021096,2]
[331551497,1720491039278,-2195.51567082,0.0002172,2]
[331551498,1720491039289,-880.11608907,0.00022367,2]
[331551499,1720491039299,-2028.7954139,0.000229,2]
[331551500,1720491039308,-2195.51567082,0.00024504,2]
[331551501,1720491039317,-13761.34208283,0.00025,2]
[331551502,1720491039327,-155.23684784,0.00025,2]
[331551503,1720491039337,-307.64906425,0.00025,2]
[331551504,1720491039347,-150.0,0.00025,2]
[331551505,1720491039357,-428.24738691,0.00025,2]
[331551506,1720491039368,-763.79636746,0.00025,2]
[331551507,1720491039378,-225.71833691,0.00025,2]
[331551508,1720491039388,-189.22156458,0.00025,2]
[331551509,1720491039398,-589.22341254,0.00025,7]
[331551510,1720491039408,-155.33544361,0.00025,2]
[331551511,1720491039419,-6863.87493251,0.00025,2]
[331551512,1720491039429,-154.62117811,0.00025,10]
[331551513,1720491039440,-250.0,0.00025548,2]
[331551514,1720491039450,-2723.09925784,0.00025731,2]
[331551515,1720491039460,-154.94184435,0.00025902,2]
[331551516,1720491039471,-350.0,0.00026096,2]
[331551517,1720491039481,-450.0,0.00026644,2]
[331551518,1720491039491,-155.07298006,0.00026848,2]
[331551519,1720491039501,-358.97423758,0.00027,2]
[331551520,1720491039511,-5181.95955056,0.0002704,2]
[331551521,1720491039522,-35772.2536244,0.00027058,3]
[331551522,1720491039532,-166.522732,0.00027123,2]
[331551523,1720491039543,-151.0,0.00027175,7]
[331551524,1720491039552,-151.0,0.00027175,7]
[331551525,1720491039562,-150.0,0.00027184,7]
[331551526,1720491039572,-6929.68899119,0.00027184,2]
[331551527,1720491039582,-154.62117811,0.00027184,2]
[331551528,1720491039593,-154.62117811,0.00027184,2]
[331551529,1720491039603,-550.0,0.00027192,2]
[331551530,1720491039613,-155.27458999,0.00027194,2]
[331551531,1720491039623,-154.62117811,0.00027194,2]
[331551532,1720491039632,-158.57719136,0.00027194,2]
[331551533,1720491039642,-160.19888198,0.00027194,2]
[331551534,1720491039652,-654.669532,0.00027195,2]
[331551535,1720491039661,-2195.51567082,0.00027287,2]
[331551536,1720491039671,-69283.33302656,0.00027297,3]
[331551537,1720491039685,-19604.66697344,0.00027297,3]
[331551538,1720491039696,-249.837777,0.00027297,7]
[331551539,1720491039707,-151.0,0.00027397,7]
[331551540,1720491039717,-497.32115817,0.00027397,2]
[331551541,1720491039727,-500.0,0.00027397,2]
[331551542,1720491039736,-500.0,0.00027397,2]
[331551543,1720491039746,-500.0,0.00027397,2]
[331551544,1720491039756,-500.0,0.00027397,2]
[331551545,1720491039766,-500.0,0.00027397,2]
[331551546,1720491039776,-500.0,0.00027397,2]
[331551547,1720491039787,-500.0,0.00027397,2]
[331551548,1720491039796,-500.0,0.00027397,2]
[331551549,1720491039807,-500.0,0.00027397,2]
[331551550,1720491039817,-500.0,0.00027397,2]
[331551551,1720491039826,-500.0,0.00027397,2]
[331551552,1720491039836,-500.0,0.00027397,2]
[331551553,1720491039848,-500.0,0.00027397,2]
[331551554,1720491039858,-500.0,0.00027397,2]
[331551555,1720491039867,-500.0,0.00027397,2]
[331551556,1720491039877,-500.0,0.00027397,2]
[331551557,1720491039887,-500.0,0.00027397,2]
[331551558,1720491039897,-500.0,0.00027397,2]
[331551559,1720491039907,-500.0,0.00027397,2]
[331551560,1720491039917,-500.0,0.00027397,2]
[331551561,1720491039986,-500.0,0.00027397,2]
[331551562,1720491039996,-500.0,0.00027397,2]
[331551563,1720491040006,-500.0,0.00027397,2]
[331551565,1720491040015,-500.0,0.00027397,2]
[331551567,1720491040025,-500.0,0.00027397,2]
[331551568,1720491040035,-500.0,0.00027397,2]
[331551570,1720491040044,-500.0,0.00027397,2]
[331551572,1720491040054,-500.0,0.00027397,2]
[331551574,1720491040063,-500.0,0.00027397,2]
[331551575,1720491040073,-500.0,0.00027397,2]
[331551576,1720491040083,-500.0,0.00027397,2]
[331551577,1720491040093,-500.0,0.00027397,2]
[331551578,1720491040102,-500.0,0.00027397,2]
[331551579,1720491040112,-500.0,0.00027397,2]
[331551580,1720491040122,-500.0,0.00027397,2]
[331551581,1720491040131,-500.0,0.00027397,2]
[331551582,1720491040142,-500.0,0.00027397,2]
[331551583,1720491040152,-500.0,0.00027397,2]
[331551584,1720491040162,-500.0,0.00027397,2]
[331551585,1720491040172,-500.0,0.00027397,2]
[331551586,1720491040182,-500.0,0.00027397,2]
[331551587,1720491040192,-500.0,0.00027397,2]
[331551588,1720491040206,-500.0,0.00027397,2]
[331551589,1720491040216,-417.87711387,0.00027397,2]
[331551590,1720491040226,-500.0,0.00027397,2]
[331551591,1720491040236,-500.0,0.00027397,2]
[331551592,1720491040246,-500.0,0.00027397,2]
[331551593,1720491040256,-500.0,0.00027397,2]
[331551594,1720491040266,-500.0,0.00027397,2]
[331551595,1720491040276,-500.0,0.00027397,2]
[331551596,1720491040287,-500.0,0.00027397,2]
[331551597,1720491040297,-500.0,0.00027397,2]
[331551598,1720491040307,-500.0,0.00027397,2]
[331551599,1720491040317,-500.0,0.00027397,2]
[331551600,1720491040326,-500.0,0.00027397,2]
[331551601,1720491040336,-500.0,0.00027397,2]
[331551602,1720491040347,-500.0,0.00027397,2]
[331551603,1720491040357,-500.0,0.00027397,2]
[331551604,1720491040367,-500.0,0.00027397,2]
[331551605,1720491040376,-500.0,0.00027397,2]
[331551606,1720491040386,-151.0,0.00027397,7]
[331551607,1720491040395,-166.917542,0.00027397,7]
[331551608,1720491040405,-151.0,0.00027397,7]
[331551610,1720491040415,-151.0,0.00027397,7]
[331551612,1720491040424,-151.0,0.00027397,7]
[331551614,1720491040434,-272.107494,0.00027397,7]
[331551615,1720491040444,-272.107494,0.00027397,7]
[331551616,1720491040454,-272.107494,0.00027397,7]
[331551617,1720491040463,-272.107494,0.00027397,7]
[331551618,1720491040472,-191.0559141,0.00027397,120]
[331551619,1720491040482,-160.593007,0.00027397,7]
[331551620,1720491040491,-160.593007,0.00027397,7]
[331551621,1720491040501,-160.593007,0.00027397,7]
[331551622,1720491040510,-160.593007,0.00027397,7]
[331551623,1720491040519,-151.0,0.00027397,7]
[331551624,1720491040528,-151.0,0.00027397,7]
[331551625,1720491040538,-162.9872,0.00027397,7]
[331551626,1720491040547,-151.0,0.00027397,7]
[331551627,1720491040556,-151.0,0.00027397,7]
[331551628,1720491040566,-352.456612,0.00027397,7]
[331551629,1720491040576,-352.456612,0.00027397,7]
[331551630,1720491040585,-352.456612,0.00027397,7]
[331551631,1720491040596,-352.456612,0.00027397,7]
[331551632,1720491040605,-151.0,0.00027397,7]
[331551633,1720491040615,-151.0,0.00027397,7]
[331551634,1720491040625,-151.0,0.00027397,7]
[331551635,1720491040634,-567.282735,0.00027397,2]
[331551636,1720491040643,-151.0,0.00027397,7]
[331551637,1720491040652,-567.282735,0.00027397,2]
[331551638,1720491040662,-567.282735,0.00027397,2]
[331551639,1720491040671,-567.282735,0.00027397,2]
[331551640,1720491040681,-151.0,0.00027397,7]
[331551641,1720491040692,-290.046669,0.00027397,7]
[331551642,1720491040701,-152.713107,0.00027397,7]
[331551643,1720491040712,-151.0,0.00027397,7]
[331551644,1720491040722,-151.0,0.00027397,7]
[331551645,1720491040732,-151.0,0.00027397,7]
[331551646,1720491040741,-151.0,0.00027397,7]
[331551647,1720491040751,-151.0,0.00027397,7]
[331551648,1720491040760,-245.98858,0.00027397,7]
[331551649,1720491040769,-162.077055,0.00027397,7]
[331551650,1720491040780,-151.0,0.00027397,7]
[331551651,1720491040790,-151.0,0.00027397,7]
[331551652,1720491040799,-151.0,0.00027397,7]
[331551653,1720491040809,-151.0,0.00027397,7]
[331551654,1720491040819,-151.0,0.00027397,7]
[331551655,1720491040829,-151.0,0.00027397,7]
[331551656,1720491040840,-151.0,0.00027397,7]
[331551657,1720491040852,-151.0,0.00027397,7]
[331551658,1720491040863,-151.0,0.00027397,7]
[331551659,1720491040875,-154.62117811,0.00027399,2]
[331551660,1720491040886,-160.06243916,0.00027399,2]
[331551661,1720491040897,-650.0,0.0002774,2]
[331551662,1720491040909,-2028.7954139,0.000279,2]
[331551663,1720491040919,-155.49752189,0.00027999,2]
[331551664,1720491040929,-191.12784748,0.00027999,2]
[331551665,1720491040939,-172.42394717,0.00028,30]
[331551666,1720491040949,-505.07079601,0.00028,2]
[331551667,1720491040961,-750.0,0.00028288,2]
[331551668,1720491040971,-850.0,0.00028836,2]
[331551669,1720491040981,-456.71308225,0.00029384,2]
[331551670,1720491040992,-268.60335139,0.00029772,2]
[331551671,1720491041003,-175.37288532,0.00029772,2]
[331551672,1720491041013,-158.25494522,0.00029772,2]
[331551673,1720491041023,-165.47458079,0.00029793,2]
[331551674,1720491041033,-209.2545862,0.00029793,2]
[331551675,1720491041044,-209.2545862,0.00029793,2]
[331551676,1720491041054,-247.414595,0.000298,120]
[331551677,1720491041120,-293.45867215,0.00029813,2]
[331551678,1720491041131,-154.62117811,0.0002987,2]
[331551679,1720491041143,-182.7181389,0.0002987,2]
[331551680,1720491041153,-154.62117811,0.0002987,2]
[331551681,1720491041163,-197.30576581,0.00029879,2]
[331551682,1720491041173,-197.30576581,0.00029879,2]
[331551683,1720491041183,-154.62117811,0.00029901,2]
[331551684,1720491041193,-170.41373926,0.0003,4]
[331551685,1720491041205,-643.5565645,0.0003,4]
[331551686,1720491041217,-304.22675637,0.0003,30]
[331551687,1720491041226,-154.62117811,0.0003,4]
[331551688,1720491041236,-189.0,0.0003,2]
[331551689,1720491041247,-2723.09925784,0.00030525,2]
[331551690,1720491041257,-158.884113,0.00031631,2]
[331551691,1720491041267,-1405.0,0.00031811,2]
[331551692,1720491041278,-272.107494,0.0003185,7]
[331551693,1720491041289,-272.107494,0.0003185,7]
[331551694,1720491041299,-241.754,0.0003186,2]
[331551695,1720491041309,-151.047,0.0003186,2]
[331551696,1720491041320,-2372.02455725,0.000325,60]
[331551697,1720491041331,-153.0,0.00032685,2]
[331551698,1720491041344,-151.0,0.00032867,7]
[331551699,1720491041354,-151.0,0.00032867,7]
[331551700,1720491041364,-151.0,0.00032867,7]
[331551701,1720491041374,-1740.043342,0.00032877,7]
[331551702,1720491041384,-1740.043342,0.00032877,7]
[331551703,1720491041393,-1740.043342,0.00032877,7]
[331551704,1720491041403,-1740.043342,0.00032877,7]
[331551705,1720491041413,-150.0,0.00032877,2]
[331551706,1720491041423,-2028.7954139,0.000329,2]
[331551707,1720491041434,-335.9694898,0.0003295,4]
[331551708,1720491041444,-151.0,0.0003295,7]
[331551709,1720491041453,-160.593007,0.0003295,7]
[331551710,1720491041463,-160.593007,0.0003295,7]
[331551711,1720491041472,-153.640149,0.0003295,7]
[331551712,1720491041481,-352.456612,0.0003295,7]
[331551713,1720491041491,-352.456612,0.0003295,7]
[331551714,1720491041500,-269.901281,0.0003295,7]
[331551715,1720491041509,-151.0,0.0003295,7]
[331551716,1720491041521,-567.282735,0.0003295,2]
[331551717,1720491041531,-567.282735,0.0003295,2]
[331551718,1720491041540,-1740.043342,0.0003295,7]
[331551719,1720491041550,-1740.043342,0.0003295,7]
[331551720,1720491041559,-189.0,0.00033,2]
[331551721,1720491041569,-180.0,0.00033208,4]
[331551722,1720491041579,-654.669532,0.00033295,2]
[331551723,1720491041588,-151.0,0.00033295,7]
[331551724,1720491041600,-157.184594,0.00033295,7]
[331551725,1720491041609,-151.0,0.00033295,7]
[331551726,1720491041618,-151.0,0.00033295,7]
[331551727,1720491041628,-156.447389,0.00033333,7]
[331551728,1720491041637,-154.492841,0.00033333,7]
[331551729,1720491041647,-151.0,0.00033333,7]
[331551730,1720491041656,-272.107494,0.00033333,7]
[331551731,1720491041665,-272.107494,0.00033333,7]
[331551732,1720491041675,-151.0,0.00033333,7]
[331551733,1720491041684,-160.593007,0.00033333,7]
[331551734,1720491041694,-160.593007,0.00033333,7]
[331551735,1720491041704,-352.456612,0.00033333,7]
[331551736,1720491041714,-352.456612,0.00033333,7]
[331551737,1720491041723,-151.0,0.00033333,7]
[331551738,1720491041733,-567.282735,0.00033333,2]
[331551739,1720491041742,-567.282735,0.00033333,2]
[331551740,1720491041751,-1740.043342,0.00033333,7]
[331551741,1720491041761,-1017.75220301,0.00033333,7]
[331551742,1720491042150,-500.0,0.00016242,2]
[331551743,1720491042161,-276.64310743,0.00016816,2]
[331551744,1720491042170,-492.63224614,0.00022943,2]
[331551745,1720491042180,-154.62117811,0.00027184,2]
[331551746,1720491042190,-154.62117811,0.00027999,2]
[331551747,1720491042200,-154.62117811,0.00029803,2]
[331551748,1720491042214,-154.62117811,0.00029861,2]
[331551749,1720491042224,-722.29113899,0.00033333,7]
[331551750,1720491042233,-151.0,0.00033333,7]
[331551751,1720491042242,-151.0,0.00033333,7]